[Event "77th Armenian Women Championship 2022"]
[Site "Yerevan"]
[Date "2022.01.12"]
[Round "1.5"]
[White "Arakelyan, Nare"]
[Black "Hakobyan, Astghik"]
[Result "1-0"]
[ECO "B15"]
[WhiteElo "1912"]
[BlackElo "2053"]
[Annotator "ChessBase"]
[PlyCount "65"]
[EventDate "2022.01.12"]
[EventType "tourn"]
[EventCountry "ARM"]
[SourceTitle "playchess.com"]
[Source "ChessBase"]
[SourceQuality "1"]
[TimeControl "40/5400+30:1800+30"]

1. e4 {[%emt 0:00:21]} c6 {[%emt 0:00:35]} 2. d4 {[%emt 0:00:26]} d5 {[%emt 0:00:14]} 3. Nc3 {[%emt 0:00:24]} dxe4 {[%emt 0:00:33]} 4. Nxe4 {[%emt 0:00:21]} Nf6 {[%emt 0:00:27]} 5. Nxf6+ {[%emt 0:01:02]} exf6 {[%emt 0:00:09]} 6. c3 {[%emt 0:00:32]} Bd6 {[%emt 0:00:44]} 7. Bd3 {[%emt 0:00:14]} O-O {[%emt 0:02:10]} 8. Qc2 {[%emt 0:00:09]} Re8+ {[%emt 0:00:06]} 9. Ne2 {[%emt 0:00:03]} h5 {[%emt 0:00:41]} 10. Be3 {[%emt 0:02:19]} Nd7 {[%emt 0:00:36]} 11. O-O-O {[%emt 0:00:38]} Nf8 {[%emt 0:00:23]} 12. Kb1 {[%emt 0:15:50]} Be6 {[%emt 0:01:44]} 13. c4 {[%emt 0:04:35]} b5 {[%emt 0:03:45]} 14. d5 {[%emt 0:08:21]} cxd5 {[%emt 0:04:51]} 15. c5 {[%emt 0:04:05]} Rc8 {[%emt 0:17:05]} 16. Bxb5 {[%emt 0:03:40]} Nd7 {[%emt 0:02:21]} 17. c6 {[%emt 0:08:39]} Ne5 {[%emt 0:12:31]} 18. Qa4 {[%emt 0:12:42]} Qc7 {[%emt 0:11:49]} 19. Nf4 {[%emt 0:07:18]} Nc4 {[%emt 0:18:27]} 20. Nxd5 {[%emt 0:02:52]} Bxd5 {[%emt 0:00:17]} 21. Rxd5 {[%emt 0:00:03]} Nxe3 {[%emt 0:00:58]} 22. fxe3 {[%emt 0:00:03]} Rxe3 {[%emt 0:03:56]} 23. Qd4 {[%emt 0:05:33]} Re5 {[%emt 0:05:05]} 24. Rxd6 {[%emt 0:04:10]} Rxb5 {[%emt 0:00:02]} 25. Rd1 {[%emt 0:02:28]} Re8 {[%emt 0:07:37]} 26. Qc4 {[%emt 0:01:40]} Qa5 {[%emt 0:05:42]} 27. Rd7 {[%emt 0:03:51]} Rf8 {[%emt 0:00:36]} 28. Rc1 {[%emt 0:00:51]} Qb6 {[%emt 0:00:33]} 29. b3 {[%emt 0:00:35]} Rb4 {[%emt 0:00:23]} 30. Qd5 {[%emt 0:01:20]} Rb5 {[%emt 0:00:25]} 31. Qc4 {[%emt 0:03:32]} Rb4 {[%emt 0:00:38]} 32. Qd3 {[%emt 0:00:22]} Rb5 {[%emt 0:00:34]} 33. Rb7 {[%emt 0:00:43]} 1-0

[Event "77th Armenian Women Championship 2022"]
[Site "Yerevan"]
[Date "2022.01.13"]
[Round "2.1"]
[White "Avetisyan, Mariam"]
[Black "Yedigaryan, Asya"]
[Result "1/2-1/2"]
[ECO "C00"]
[WhiteElo "2012"]
[BlackElo "2022"]
[Annotator "ChessBase"]
[PlyCount "69"]
[EventDate "2022.01.12"]
[EventType "tourn"]
[EventCountry "ARM"]
[SourceTitle "playchess.com"]
[Source "ChessBase"]
[SourceQuality "1"]
[TimeControl "40/5400+30:1800+30"]

1. e4 {[%emt 0:01:38]} e6 {[%emt 0:00:35]} 2. d4 {[%emt 0:00:23]} d5 {[%emt 0:00:05]} 3. Bd3 {[%emt 0:00:07]} dxe4 {[%emt 0:00:11]} 4. Bxe4 {[%emt 0:00:05]} Nf6 {[%emt 0:00:04]} 5. Bf3 {[%emt 0:00:05]} c5 {[%emt 0:04:13]} 6. Ne2 {[%emt 0:06:14]} Be7 {[%emt 0:05:19]} 7. O-O {[%emt 0:01:15]} O-O {[%emt 0:00:35]} 8. Be3 {[%emt 0:15:43]} Nbd7 {[%emt 0:06:48]} 9. Nbc3 {[%emt 0:16:12]} cxd4 {[%emt 0:12:13]} 10. Bxd4 {[%emt 0:05:46]} Qa5 {[%emt 0:09:19]} 11. Nc1 {[%emt 0:12:05]} Ne5 {[%emt 0:12:55]} 12. Nb3 {[%emt 0:02:35]} Nxf3+ {[%emt 0:00:23]} 13. Qxf3 {[%emt 0:00:04]} Qf5 {[%emt 0:13:35]} 14. Qxf5 {[%emt 0:03:29]} exf5 {[%emt 0:00:06]} 15. Rfe1 {[%emt 0:04:13]} Be6 {[%emt 0:10:04]} 16. Bc5 {[%emt 0:11:51]} Rfe8 {[%emt 0:05:07]} 17. Bxe7 {[%emt 0:01:20]} Rxe7 {[%emt 0:00:30]} 18. Nd4 {[%emt 0:02:43]} g6 {[%emt 0:02:58]} 19. Nxe6 {[%emt 0:03:40]} Rxe6 {[%emt 0:02:22]} 20. Rxe6 {[%emt 0:06:30]} fxe6 {[%emt 0:00:13]} 21. Re1 {[%emt 0:02:22]} Kf7 {[%emt 0:01:56]} 22. Nb5 {[%emt 0:00:27]} Rd8 {[%emt 0:00:25]} 23. Nxa7 {[%emt 0:01:37]} Ra8 {[%emt 0:00:35]} 24. Nb5 {[%emt 0:00:04]} Rxa2 {[%emt 0:00:05]} 25. Rb1 {[%emt 0:00:42]} Ke7 {[%emt 0:02:00]} 26. Nc3 {[%emt 0:00:27]} Ra6 {[%emt 0:00:50]} 27. f3 {[%emt 0:00:54]} Nd5 {[%emt 0:06:00]} 28. Nxd5+ {[%emt 0:00:54]} exd5 {[%emt 0:00:05]} 29. Rd1 {[%emt 0:00:37]} Ra2 {[%emt 0:01:11]} 30. Rxd5 {[%emt 0:00:38]} Rxb2 {[%emt 0:00:05]} 31. Rd2 {[%emt 0:00:13]} b5 {[%emt 0:01:38]} 32. Kf2 {[%emt 0:00:27]} b4 {[%emt 0:00:08]} 33. f4 {[%emt 0:00:53]} b3 {[%emt 0:00:12]} 34. Re2+ {[%emt 0:00:04]} Kf6 {[%emt 0:00:17]} 35. cxb3 {[%emt 0:00:15]} 1/2-1/2

[Event "77th Armenian Women Championship 2022"]
[Site "Yerevan"]
[Date "2022.01.13"]
[Round "2.2"]
[White "Hakobyan, Astghik"]
[Black "Mkrtchyan, Mariam"]
[Result "1-0"]
[ECO "B10"]
[WhiteElo "2053"]
[BlackElo "2262"]
[Annotator "ChessBase"]
[PlyCount "85"]
[EventDate "2022.01.12"]
[EventType "tourn"]
[EventCountry "ARM"]
[SourceTitle "playchess.com"]
[Source "ChessBase"]
[SourceQuality "1"]
[TimeControl "40/5400+30:1800+30"]

1. e4 {[%emt 0:02:29]} c6 {[%emt 0:00:06]} 2. Nf3 {[%emt 0:00:36]} d5 {[%emt 0:00:10]} 3. Nc3 {[%emt 0:00:23]} dxe4 {[%emt 0:00:39]} 4. Nxe4 {[%emt 0:00:34]} Nf6 {[%emt 0:00:09]} 5. Qe2 {[%emt 0:00:17]} Nxe4 {[%emt 0:04:54]} 6. Qxe4 {[%emt 0:00:09]} Be6 {[%emt 0:00:03]} 7. b3 {[%emt 0:00:37]} Nd7 {[%emt 0:02:21]} 8. Bb2 {[%emt 0:01:10]} Nf6 {[%emt 0:00:24]} 9. Qf4 {[%emt 0:02:44]} Qa5 {[%emt 0:06:05]} 10. Ng5 {[%emt 0:09:03]} Nh5 {[%emt 0:03:56]} 11. Qh4 {[%emt 0:07:39]} O-O-O {[%emt 0:20:20]} 12. Bd3 {[%emt 0:27:29]} Nf6 {[%emt 0:08:13]} 13. Nxe6 {[%emt 0:00:53]} fxe6 {[%emt 0:00:02]} 14. Bc3 {[%emt 0:02:48]} Qc5 {[%emt 0:04:58]} 15. O-O {[%emt 0:12:51]} Nd5 {[%emt 0:04:51]} 16. Bd4 {[%emt 0:02:56]} Qd6 {[%emt 0:00:07]} 17. Rfe1 {[%emt 0:05:39]} Qf4 {[%emt 0:01:07]} 18. Re4 {[%emt 0:01:42]} Qxh4 {[%emt 0:08:58]} 19. Rxh4 {[%emt 0:00:01]} Nb4 {[%emt 0:01:09]} 20. Bc4 {[%emt 0:03:48]} Nxc2 {[%emt 0:01:27]} 21. Bxe6+ {[%emt 0:00:03]} Kb8 {[%emt 0:00:35]} 22. Be5+ {[%emt 0:00:06]} Ka8 {[%emt 0:00:04]} 23. Rd1 {[%emt 0:01:37]} c5 {[%emt 0:05:44]} 24. Rc1 {[%emt 0:04:43]} Rxd2 {[%emt 0:04:22]} 25. Rc4 {[%emt 0:00:19]} Na3 {[%emt 0:06:16]} 26. Rxc5 {[%emt 0:00:07]} a6 {[%emt 0:00:03]} 27. Rc8+ {[%emt 0:00:38]} Ka7 {[%emt 0:00:00]} 28. Bf4 {[%emt 0:00:08]} Re2 {[%emt 0:00:12]} 29. Bd7 {[%emt 0:02:08]} g6 {[%emt 0:03:20]} 30. Kf1 {[%emt 0:01:24]} Re4 {[%emt 0:00:28]} 31. Be3+ {[%emt 0:00:12]} Rxe3 {[%emt 0:00:06]} 32. fxe3 {[%emt 0:00:04]} Bg7 {[%emt 0:00:25]} 33. Rxh8 {[%emt 0:01:04]} Bxh8 {[%emt 0:00:01]} 34. Ke2 {[%emt 0:00:59]} Bb2 {[%emt 0:00:08]} 35. Rc8 {[%emt 0:00:17]} Nb1 {[%emt 0:01:09]} 36. Kd3 {[%emt 0:00:06]} Be5 {[%emt 0:00:10]} 37. h3 {[%emt 0:00:50]} b5 {[%emt 0:00:04]} 38. Re8 {[%emt 0:03:02]} Bf6 {[%emt 0:00:27]} 39. e4 {[%emt 0:00:47]} Nc3 {[%emt 0:04:38]} 40. e5 {[%emt 0:00:00]} Bxe5 {[%emt 0:00:00]} 41. Rxe7 {[%emt 0:01:02]} Bd6 {[%emt 0:00:05]} 42. Re6 {[%emt 0:00:34]} Bb4 {[%emt 0:00:04]} 43. a3 {[%emt 0:00:14]} 1-0

[Event "77th Armenian Women Championship 2022"]
[Site "Yerevan"]
[Date "2022.01.13"]
[Round "2.3"]
[White "Gaboyan, Susanna"]
[Black "Gevorgyan, Maria"]
[Result "1-0"]
[ECO "A05"]
[WhiteElo "2254"]
[BlackElo "2218"]
[Annotator "ChessBase"]
[PlyCount "117"]
[EventDate "2022.01.12"]
[EventType "tourn"]
[EventCountry "ARM"]
[SourceTitle "playchess.com"]
[Source "ChessBase"]
[SourceQuality "1"]
[TimeControl "40/5400+30:1800+30"]

1. Nf3 {[%emt 0:00:06]} Nf6 {[%emt 0:00:07]} 2. g3 {[%emt 0:00:06]} b6 {[%emt 0:00:14]} 3. Bg2 {[%emt 0:00:08]} Bb7 {[%emt 0:00:04]} 4. O-O {[%emt 0:00:10]} g6 {[%emt 0:00:04]} 5. d3 {[%emt 0:01:42]} Bg7 {[%emt 0:00:10]} 6. e4 {[%emt 0:00:08]} O-O {[%emt 0:00:06]} 7. Nc3 {[%emt 0:04:31]} c5 {[%emt 0:00:53]} 8. Bf4 {[%emt 0:06:40]} d6 {[%emt 0:01:31]} 9. Qd2 {[%emt 0:00:49]} Nbd7 {[%emt 0:09:26]} 10. Bh6 {[%emt 0:00:58]} a6 {[%emt 0:00:12]} 11. a4 {[%emt 0:00:24]} Ne8 {[%emt 0:06:56]} 12. Bxg7 {[%emt 0:00:33]} Kxg7 {[%emt 0:00:01]} 13. Ng5 {[%emt 0:04:34]} h6 {[%emt 0:14:30]} 14. Nh3 {[%emt 0:00:11]} e6 {[%emt 0:03:38]} 15. f4 {[%emt 0:06:06]} f5 {[%emt 0:02:46]} 16. exf5 {[%emt 0:02:24]} Bxg2 {[%emt 0:00:06]} 17. Qxg2 {[%emt 0:00:32]} exf5 {[%emt 0:04:41]} 18. Rae1 {[%emt 0:01:15]} Ndf6 {[%emt 0:00:36]} 19. Re2 {[%emt 0:03:08]} d5 {[%emt 0:03:28]} 20. Rfe1 {[%emt 0:10:07]} Ra7 {[%emt 0:00:19]} 21. Nf2 {[%emt 0:08:14]} d4 {[%emt 0:06:47]} 22. Nb1 {[%emt 0:02:25]} Nd5 {[%emt 0:03:48]} 23. Na3 {[%emt 0:00:27]} Nef6 {[%emt 0:05:25]} 24. Nc4 {[%emt 0:07:12]} b5 {[%emt 0:01:45]} 25. Ne5 {[%emt 0:00:10]} Qd6 {[%emt 0:02:55]} 26. Qf3 {[%emt 0:01:40]} Re7 {[%emt 0:04:32]} 27. Nd1 {[%emt 0:08:32]} bxa4 {[%emt 0:04:40]} 28. Nc4 {[%emt 0:02:21]} Rxe2 {[%emt 0:03:41]} 29. Rxe2 {[%emt 0:05:24]} Qd7 {[%emt 0:02:11]} 30. Re5 {[%emt 0:03:29]} Re8 {[%emt 0:05:07]} 31. Nf2 {[%emt 0:07:25]} Rxe5 {[%emt 0:02:49]} 32. fxe5 {[%emt 0:00:06]} Ng8 {[%emt 0:00:17]} 33. h4 {[%emt 0:05:56]} Nge7 {[%emt 0:02:10]} 34. Nh3 {[%emt 0:00:23]} Qb5 {[%emt 0:05:12]} 35. Kh2 {[%emt 0:04:12]} Qc6 {[%emt 0:02:19]} 36. Nf4 {[%emt 0:02:42]} Nxf4 {[%emt 0:02:24]} 37. Qxf4 {[%emt 0:00:03]} Nd5 {[%emt 0:00:16]} 38. Qf3 {[%emt 0:00:09]} Qe6 {[%emt 0:00:52]} 39. Kg2 {[%emt 0:02:29]} Ne7 {[%emt 0:00:34]} 40. Kh2 {[%emt 0:00:00]} Qd5 {[%emt 0:00:00]} 41. Qf4 {[%emt 0:04:04]} Qe6 {[%emt 0:07:11]} 42. Kg2 {[%emt 0:04:16]} Nd5 {[%emt 0:02:05]} 43. Qf3 {[%emt 0:03:41]} g5 {[%emt 0:01:10]} 44. hxg5 {[%emt 0:05:19]} hxg5 {[%emt 0:00:04]} 45. Qh5 {[%emt 0:00:07]} Qg6 {[%emt 0:00:04]} 46. Qf3 {[%emt 0:00:11]} Qc6 {[%emt 0:00:42]} 47. Kg1 {[%emt 0:00:29]} Ne7 {[%emt 0:06:41]} 48. Qh5 {[%emt 0:01:16]} Qg6 {[%emt 0:00:13]} 49. Qf3 {[%emt 0:01:37]} g4 {[%emt 0:04:22]} 50. Qb7 {[%emt 0:01:06]} Qe6 {[%emt 0:00:28]} 51. Qb6 {[%emt 0:04:19]} Qc6 {[%emt 0:02:59]} 52. Qd8 {[%emt 0:01:16]} Kf7 {[%emt 0:01:07]} 53. Nd6+ {[%emt 0:04:18]} Ke6 {[%emt 0:00:16]} 54. Ne8 {[%emt 0:00:19]} Nd5 {[%emt 0:04:18]} 55. Nd6 {[%emt 0:03:56]} Qd7 {[%emt 0:05:52]} 56. Qh8 {[%emt 0:00:02]} Ne3 {[%emt 0:02:05]} 57. Qf6+ {[%emt 0:01:18]} Kd5 {[%emt 0:00:01]} 58. Nc8 {[%emt 0:00:18]} Nc4 {[%emt 0:01:36]} 59. Ne7+ {[%emt 0:00:17]} 1-0

[Event "77th Armenian Women Championship 2022"]
[Site "Yerevan"]
[Date "2022.01.13"]
[Round "2.4"]
[White "Khachatryan, Anna"]
[Black "Arakelyan, Nare"]
[Result "0-1"]
[ECO "B52"]
[WhiteElo "2134"]
[BlackElo "1912"]
[Annotator "ChessBase"]
[PlyCount "120"]
[EventDate "2022.01.12"]
[EventType "tourn"]
[EventCountry "ARM"]
[SourceTitle "playchess.com"]
[Source "ChessBase"]
[SourceQuality "1"]
[TimeControl "40/5400+30:1800+30"]

1. e4 {[%emt 0:00:57]} c5 {[%emt 0:00:50]} 2. Nf3 {[%emt 0:00:05]} d6 {[%emt 0:01:23]} 3. Bb5+ {[%emt 0:00:05]} Bd7 {[%emt 0:00:20]} 4. Bxd7+ {[%emt 0:00:06]} Qxd7 {[%emt 0:00:02]} 5. c4 {[%emt 0:00:15]} Nc6 {[%emt 0:00:42]} 6. Nc3 {[%emt 0:01:02]} g6 {[%emt 0:01:36]} 7. d4 {[%emt 0:00:47]} cxd4 {[%emt 0:00:24]} 8. Nxd4 {[%emt 0:00:05]} Bg7 {[%emt 0:00:17]} 9. Nde2 {[%emt 0:02:29]} Nf6 {[%emt 0:01:59]} 10. O-O {[%emt 0:01:11]} O-O {[%emt 0:04:13]} 11. f3 {[%emt 0:00:13]} Ne5 {[%emt 0:05:19]} 12. b3 {[%emt 0:00:59]} a6 {[%emt 0:00:16]} 13. a4 {[%emt 0:01:21]} b6 {[%emt 0:08:40]} 14. Be3 {[%emt 0:10:21]} Qb7 {[%emt 0:11:44]} 15. Rb1 {[%emt 0:06:03]} Rfd8 {[%emt 0:01:45]} 16. Qd2 {[%emt 0:10:24]} Rac8 {[%emt 0:05:03]} 17. Rfd1 {[%emt 0:03:00]} h5 {[%emt 0:01:30]} 18. Qe1 {[%emt 0:28:51]} Nfd7 {[%emt 0:11:47]} 19. Nd5 {[%emt 0:08:16]} Nc5 {[%emt 0:02:41]} 20. Qh4 {[%emt 0:09:44]} Re8 {[%emt 0:13:25]} 21. Nd4 {[%emt 0:02:49]} Nc6 {[%emt 0:07:00]} 22. Nxc6 {[%emt 0:07:24]} Rxc6 {[%emt 0:00:04]} 23. Kh1 {[%emt 0:01:19]} Kf8 {[%emt 0:03:36]} 24. Qg3 {[%emt 0:04:06]} b5 {[%emt 0:02:43]} 25. Bxc5 {[%emt 0:00:29]} Rxc5 {[%emt 0:00:51]} 26. cxb5 {[%emt 0:00:04]} axb5 {[%emt 0:00:15]} 27. b4 {[%emt 0:00:15]} Rc2 {[%emt 0:05:14]} 28. a5 {[%emt 0:00:08]} Rec8 {[%emt 0:01:33]} 29. Nb6 {[%emt 0:01:06]} R8c3 {[%emt 0:01:32]} 30. Qg5 {[%emt 0:00:35]} Bf6 {[%emt 0:06:03]} 31. Qxb5 Rc6 {[%emt 0:01:20]} 32. Qd5 {[%emt 0:01:12]} e6 {[%emt 0:00:28]} 33. Qd3 {[%emt 0:00:24]} Be5 {[%emt 0:01:02]} 34. Qe3 {[%emt 0:00:50]} R6c3 {[%emt 0:01:11]} 35. Rd3 {[%emt 0:00:30]} Rxd3 {[%emt 0:00:38]} 36. Qxd3 {[%emt 0:00:02]} Qc6 {[%emt 0:00:10]} 37. Qd1 {[%emt 0:00:55]} Kg7 {[%emt 0:00:52]} 38. Nd7 {[%emt 0:00:35]} Bf4 {[%emt 0:00:28]} 39. b5 {[%emt 0:00:28]} Qc4 {[%emt 0:00:27]} 40. b6 Qa2 {[%emt 0:00:00]} 41. Qd4+ {[%emt 0:07:50]} e5 {[%emt 0:05:06]} 42. Qa1 {[%emt 0:00:51]} Qc4 {[%emt 0:00:27]} 43. Rg1 {[%emt 0:10:05]} Qe6 {[%emt 0:01:52]} 44. Rf1 {[%emt 0:09:41]} Qxd7 {[%emt 0:07:24]} 45. Qb1 {[%emt 0:01:47]} Rc8 {[%emt 0:00:31]} 46. Qd3 {[%emt 0:03:18]} Qc6 {[%emt 0:02:41]} 47. g3 {[%emt 0:00:22]} Bg5 {[%emt 0:00:29]} 48. Rb1 {[%emt 0:00:28]} Bd8 {[%emt 0:02:12]} 49. Qb3 {[%emt 0:00:41]} Qb7 {[%emt 0:01:37]} 50. Qd3 Qc6 {[%emt 0:00:55]} 51. Qb3 {[%emt 0:00:44]} Rb8 {[%emt 0:00:50]} 52. Kg2 {[%emt 0:00:36]} Qc5 {[%emt 0:01:20]} 53. Qb5 {[%emt 0:00:38]} Qc2+ {[%emt 0:02:08]} 54. Kh3 {[%emt 0:00:16]} g5 {[%emt 0:00:58]} 55. Rb4 {[%emt 0:00:26]} Qd1 {[%emt 0:01:11]} 56. Kg2 {[%emt 0:00:38]} Qd2+ {[%emt 0:02:27]} 57. Kh3 {[%emt 0:00:42]} Qd1 {[%emt 0:02:40]} 58. Kg2 {[%emt 0:00:23]} g4 {[%emt 0:00:41]} 59. Rb3 {[%emt 0:00:34]} Rc8 {[%emt 0:00:22]} 60. fxg4 {[%emt 0:00:26]} Rc2+ {[%emt 0:00:16]} 0-1

[Event "77th Armenian Women Championship 2022"]
[Site "Yerevan"]
[Date "2022.01.13"]
[Round "2.5"]
[White "Gasparian, Narine"]
[Black "Khachatryan, Veronika"]
[Result "0-1"]
[ECO "A48"]
[WhiteElo "2004"]
[BlackElo "2007"]
[Annotator "ChessBase"]
[PlyCount "128"]
[EventDate "2022.01.12"]
[EventType "tourn"]
[EventCountry "ARM"]
[SourceTitle "playchess.com"]
[Source "ChessBase"]
[SourceQuality "1"]
[TimeControl "40/5400+30:1800+30"]

1. d4 {[%emt 0:00:09]} Nf6 {[%emt 0:00:33]} 2. Nf3 {[%emt 0:00:09]} g6 {[%emt 0:00:04]} 3. c4 {[%emt 0:00:12]} Bg7 {[%emt 0:00:09]} 4. Nc3 {[%emt 0:00:05]} d5 {[%emt 0:00:11]} 5. g3 {[%emt 0:00:20]} O-O {[%emt 0:00:28]} 6. Bg2 {[%emt 0:00:18]} dxc4 {[%emt 0:00:29]} 7. Qa4 {[%emt 0:00:53]} Nfd7 {[%emt 0:05:32]} 8. Qxc4 {[%emt 0:00:37]} Nb6 {[%emt 0:00:10]} 9. Qc5 {[%emt 0:04:13]} Na6 {[%emt 0:22:06]} 10. Qg5 {[%emt 0:05:49]} Bf6 {[%emt 0:13:02]} 11. Qh6 {[%emt 0:01:25]} Nb4 {[%emt 0:07:24]} 12. O-O {[%emt 0:07:35]} Nc2 {[%emt 0:03:17]} 13. Rb1 {[%emt 0:14:10]} Nxd4 {[%emt 0:07:17]} 14. Rd1 {[%emt 0:03:33]} Nxf3+ {[%emt 0:03:10]} 15. Bxf3 {[%emt 0:00:08]} Qe8 {[%emt 0:00:12]} 16. Ne4 {[%emt 0:02:38]} Bg7 {[%emt 0:00:11]} 17. Qh4 {[%emt 0:00:32]} f6 {[%emt 0:04:54]} 18. Nc5 {[%emt 0:03:59]} c6 {[%emt 0:04:27]} 19. a4 {[%emt 0:00:07]} Qf7 {[%emt 0:04:36]} 20. a5 {[%emt 0:01:28]} Nd5 {[%emt 0:03:29]} 21. e4 {[%emt 0:06:22]} Nc7 {[%emt 0:03:07]} 22. Qf4 {[%emt 0:14:57]} e5 {[%emt 0:01:56]} 23. Qd2 {[%emt 0:01:26]} Ne6 {[%emt 0:03:49]} 24. Qb4 {[%emt 0:09:40]} Nd4 {[%emt 0:06:13]} 25. Bg2 {[%emt 0:00:07]} Bg4 {[%emt 0:01:30]} 26. f3 {[%emt 0:06:12]} Rad8 {[%emt 0:00:01]} 27. fxg4 {[%emt 0:04:46]} Nc2 {[%emt 0:00:19]} 28. Qa4 {[%emt 0:03:53]} Rxd1+ {[%emt 0:00:14]} 29. Kf2 {[%emt 0:00:05]} Rd4 {[%emt 0:02:29]} 30. b4 {[%emt 0:03:01]} Qc4 {[%emt 0:01:33]} 31. Bf1 {[%emt 0:00:50]} Qc3 {[%emt 0:00:20]} 32. Qb3+ {[%emt 0:04:43]} Qxb3 {[%emt 0:00:04]} 33. Rxb3 {[%emt 0:00:04]} Rxb4 {[%emt 0:00:55]} 34. Rc3 {[%emt 0:00:15]} Nd4 {[%emt 0:00:48]} 35. Ba3 {[%emt 0:00:51]} Rb1 {[%emt 0:00:44]} 36. Bd3 {[%emt 0:00:39]} Nb5 {[%emt 0:00:34]} 37. Bc4+ {[%emt 0:01:36]} Kh8 {[%emt 0:00:30]} 38. Bxb5 {[%emt 0:00:27]} Rxb5 {[%emt 0:01:04]} 39. Rd3 {[%emt 0:00:34]} f5 {[%emt 0:01:23]} 40. gxf5 {[%emt 0:00:00]} gxf5 {[%emt 0:00:00]} 41. Ne6 {[%emt 0:04:16]} fxe4+ {[%emt 0:06:21]} 42. Bxf8 {[%emt 0:00:07]} exd3 {[%emt 0:00:03]} 43. Bxg7+ {[%emt 0:00:08]} Kg8 {[%emt 0:00:05]} 44. Bh6 {[%emt 0:01:43]} Kf7 {[%emt 0:00:40]} 45. Nd8+ {[%emt 0:01:12]} Ke7 {[%emt 0:10:00]} 46. Bg5+ {[%emt 0:00:26]} Kd7 {[%emt 0:00:06]} 47. Nf7 {[%emt 0:03:27]} Ke6 {[%emt 0:01:20]} 48. Nd8+ {[%emt 0:00:19]} Kf5 {[%emt 0:01:46]} 49. h4 {[%emt 0:01:33]} Rd5 {[%emt 0:03:29]} 50. Ke1 {[%emt 0:00:45]} h6 {[%emt 0:01:08]} 51. Be7 {[%emt 0:00:30]} Rd7 {[%emt 0:00:18]} 52. a6 {[%emt 0:00:29]} bxa6 {[%emt 0:00:14]} 53. g4+ {[%emt 0:01:02]} Kxg4 {[%emt 0:04:28]} 54. Nxc6 {[%emt 0:00:06]} Kf4 {[%emt 0:01:10]} 55. Bf8 {[%emt 0:00:24]} Ke4 {[%emt 0:01:36]} 56. h5 {[%emt 0:00:53]} Rf7 {[%emt 0:02:44]} 57. Bb4 {[%emt 0:00:43]} Rc7 {[%emt 0:01:12]} 58. Nd8 {[%emt 0:00:33]} Kf3 {[%emt 0:01:01]} 59. Ne6 {[%emt 0:00:39]} Rc4 {[%emt 0:00:43]} 60. Bf8 {[%emt 0:00:24]} e4 {[%emt 0:00:14]} 61. Bxh6 {[%emt 0:00:34]} e3 {[%emt 0:00:08]} 62. Ng5+ {[%emt 0:00:47]} Kg2 {[%emt 0:00:47]} 63. Kd1 {[%emt 0:00:14]} e2+ {[%emt 0:00:47]} 64. Kd2 {[%emt 0:00:05]} Rc2+ {[%emt 0:00:34]} 0-1

[Event "77th Armenian Women Championship 2022"]
[Site "Yerevan"]
[Date "2022.01.14"]
[Round "3.2"]
[White "Arakelyan, Nare"]
[Black "Gasparian, Narine"]
[Result "0-1"]
[ECO "B90"]
[WhiteElo "1912"]
[BlackElo "2004"]
[Annotator "ChessBase"]
[PlyCount "72"]
[EventDate "2022.01.12"]
[EventType "tourn"]
[EventCountry "ARM"]
[SourceTitle "playchess.com"]
[Source "ChessBase"]
[SourceQuality "1"]
[TimeControl "40/5400+30:1800+30"]

1. e4 {[%emt 0:00:37]} c5 {[%emt 0:00:10]} 2. Nf3 {[%emt 0:00:29]} d6 {[%emt 0:00:40]} 3. d4 {[%emt 0:00:12]} cxd4 {[%emt 0:00:06]} 4. Nxd4 {[%emt 0:00:03]} Nf6 {[%emt 0:00:05]} 5. Nc3 {[%emt 0:00:06]} a6 {[%emt 0:00:02]} 6. h3 {[%emt 0:00:07]} g6 {[%emt 0:00:22]} 7. g4 {[%emt 0:00:25]} Bg7 {[%emt 0:00:36]} 8. Be3 {[%emt 0:01:05]} Nc6 {[%emt 0:00:16]} 9. Qd2 {[%emt 0:00:14]} O-O {[%emt 0:01:48]} 10. O-O-O {[%emt 0:00:17]} Bd7 {[%emt 0:10:50]} 11. f3 {[%emt 0:08:20]} b5 {[%emt 0:02:00]} 12. h4 {[%emt 0:02:03]} b4 {[%emt 0:00:49]} 13. Nce2 {[%emt 0:00:03]} Ne5 {[%emt 0:05:08]} 14. Ng3 {[%emt 0:08:34]} Bb5 {[%emt 0:02:26]} 15. Bh6 {[%emt 0:04:06]} Bxf1 {[%emt 0:03:34]} 16. Rdxf1 {[%emt 0:03:16]} Nc4 {[%emt 0:01:45]} 17. Qg5 {[%emt 0:00:27]} Nxe4 {[%emt 0:02:33]} 18. fxe4 {[%emt 0:10:43]} Bxd4 {[%emt 0:00:19]} 19. Rf3 {[%emt 0:00:13]} Bxb2+ {[%emt 0:01:34]} 20. Kb1 {[%emt 0:11:46]} Bc3 {[%emt 0:06:36]} 21. Rd1 {[%emt 0:00:16]} Qc7 {[%emt 0:04:20]} 22. Bxf8 {[%emt 0:03:21]} Na3+ {[%emt 0:04:11]} 23. Kc1 {[%emt 0:04:28]} Bb2+ {[%emt 0:00:44]} 24. Kd2 {[%emt 0:00:05]} Qxc2+ {[%emt 0:00:05]} 25. Ke1 {[%emt 0:00:03]} Bc3+ {[%emt 0:07:56]} 26. Rxc3 {[%emt 0:00:11]} Qxc3+ {[%emt 0:00:05]} 27. Kf2 {[%emt 0:00:02]} Rxf8 {[%emt 0:00:37]} 28. Nf5 {[%emt 0:04:53]} Qc5+ {[%emt 0:01:19]} 29. Kf3 {[%emt 0:02:13]} Qc3+ {[%emt 0:03:35]} 30. Kg2 {[%emt 0:05:56]} e6 {[%emt 0:02:06]} 31. Ne7+ {[%emt 0:09:35]} Kg7 {[%emt 0:01:09]} 32. Rxd6 {[%emt 0:03:52]} Nc4 {[%emt 0:03:22]} 33. Rc6 {[%emt 0:00:25]} Qb2+ {[%emt 0:00:31]} 34. Kh3 {[%emt 0:04:01]} Ne5 {[%emt 0:02:05]} 35. Rc7 {[%emt 0:01:26]} Nf3 {[%emt 0:01:25]} 36. Qf4 {[%emt 0:01:12]} Ng1+ {[%emt 0:00:10]} 0-1

[Event "77th Armenian Women Championship 2022"]
[Site "Yerevan"]
[Date "2022.01.14"]
[Round "3.4"]
[White "Gevorgyan, Maria"]
[Black "Avetisyan, Mariam"]
[Result "1-0"]
[ECO "B20"]
[WhiteElo "2218"]
[BlackElo "2012"]
[Annotator "RC"]
[PlyCount "61"]
[EventDate "2022.01.12"]
[EventType "tourn"]
[EventCountry "ARM"]
[SourceTitle "playchess.com"]
[Source "ChessBase"]
[SourceQuality "1"]
[TimeControl "40/5400+30:1800+30"]

1. e4 {[%emt 0:00:02]} c5 {[%emt 0:04:35]} 2. d3 {[%emt 0:00:07]} e6 {[%emt 0:02:12]} 3. Nf3 {[%emt 0:00:19]} Nc6 {[%emt 0:01:02]} 4. g3 {[%emt 0:00:13]} d5 {[%emt 0:00:04]} 5. Nbd2 {[%emt 0:00:05]} Nf6 {[%emt 0:04:16]} 6. Bg2 {[%emt 0:00:15]} Be7 {[%emt 0:00:17]} 7. O-O {[%emt 0:00:09]} Qc7 {[%emt 0:03:41]} 8. Re1 {[%emt 0:00:34]} b6 {[%emt 0:02:21]} 9. Nf1 {[%emt 0:04:12]} dxe4 {[%emt 0:08:51]} 10. dxe4 {[%emt 0:00:34]} Bb7 {[%emt 0:02:57]} 11. c3 {[%emt 0:01:03]} Rd8 {[%emt 0:04:11]} 12. Qc2 {[%emt 0:00:21]} O-O {[%emt 0:10:00]} 13. e5 {[%emt 0:09:01]} Nd5 {[%emt 0:06:58]} 14. h4 {[%emt 0:00:11]} b5 {[%emt 0:07:23]} 15. h5 {[%emt 0:00:53]} b4 {[%emt 0:05:42]} 16. N1h2 {[%emt 0:10:37]} bxc3 {[%emt 0:02:35]} 17. bxc3 {[%emt 0:00:12]} Qa5 {[%emt 0:03:25]} 18. Bd2 {[%emt 0:00:11]} Nb6 {[%emt 0:06:26]} 19. Ng5 {[%emt 0:06:53]} Bxg5 {[%emt 0:02:02]} 20. Bxg5 {[%emt 0:00:08]} Rb8 {[%emt 0:12:50]} 21. h6 {[%emt 0:12:20]} g6 {[%emt 0:00:10]} 22. Qd2 {[%emt 0:00:11]} Qa4 {[%emt 0:04:00]} 23. Bh4 {[%emt 0:11:19]} Qc4 {[%emt 0:04:05]} 24. Rad1 {[%emt 0:03:18]} Nd5 {[%emt 0:01:30]} 25. Bxd5 {[%emt 0:03:32]} exd5 {[%emt 0:00:03]} 26. Qxd5 {[%emt 0:07:17]} Qxc3 {[%emt 0:00:06]} 27. e6 {[%emt 0:05:17]} Nd4 {[%emt 0:01:00]} 28. Qe5 {[%emt 0:00:06]} Ne2+ {[%emt 0:01:10]} 29. Qxe2 {[%emt 0:00:41]} fxe6 {[%emt 0:00:23]} 30. Qxe6+ {[%emt 0:00:05]} Kh8 {[%emt 0:00:44]} 31. Ng4 {[%emt 0:00:19]} 1-0